[Event "Live Chess"]
[Site "Chess.com"]
[Date "2023.05.21"]
[Round "-"]
[White "peter-785"]
[Black "CheckThis4"]
[Result "0-1"]
[WhiteElo "1171"]
[BlackElo "2524"]
[TimeControl "300"]
[EndTime "6:40:36 PDT"]
[Termination "CheckThis4 won by checkmate"]

1. e4 {[%clk 0:04:56.8]} 1... d5 {[%clk 0:04:58]} 2. exd5 {[%clk 0:04:54.1]}
2... Nf6 {[%clk 0:04:56.5]} 3. Nf3 {[%clk 0:04:49.4]} 3... Bg4 {[%clk
0:04:51.6]} 4. Be2 {[%clk 0:04:47.4]} 4... Qxd5 {[%clk 0:04:49.6]} 5. Nc3 {[%clk
0:04:39.9]} 5... Qd7 {[%clk 0:04:48]} 6. h3 {[%clk 0:04:27.2]} 6... Bh5 {[%clk
0:04:46]} 7. Ne5 {[%clk 0:04:20.9]} 7... Qe6 {[%clk 0:04:26.4]} 8. g4 {[%clk
0:04:05.6]} 8... Qxe5 {[%clk 0:04:23.3]} 9. gxh5 {[%clk 0:04:01.2]} 9... Nc6
{[%clk 0:04:21.7]} 10. d3 {[%clk 0:03:43.8]} 10... O-O-O {[%clk 0:04:19.7]} 11.
Be3 {[%clk 0:03:29.7]} 11... e6 {[%clk 0:04:17.4]} 12. Qd2 {[%clk 0:03:19.4]}
12... Bb4 {[%clk 0:04:15.4]} 13. O-O-O {[%clk 0:02:57.9]} 13... Ne4 {[%clk
0:04:10.1]} 14. Qe1 {[%clk 0:02:49.3]} 14... Nxc3 {[%clk 0:04:07.6]} 15. bxc3
{[%clk 0:02:44.2]} 15... Bxc3 {[%clk 0:04:06.3]} 16. Qg1 {[%clk 0:02:38.9]}
16... Qa5 {[%clk 0:04:02.9]} 17. Kb1 {[%clk 0:02:31.8]} 17... Qb4+ {[%clk
0:04:00.1]} 18. Kc1 {[%clk 0:02:30.2]} 18... Qb2# {[%clk 0:03:58.8]} 0-1

[Event "Live Chess"]
[Site "Chess.com"]
[Date "2023.05.21"]
[Round "-"]
[White "Vedant-1411"]
[Black "smoggyrabbit"]
[Result "0-1"]
[WhiteElo "877"]
[BlackElo "1629"]
[TimeControl "300"]
[EndTime "6:40:52 PDT"]
[Termination "smoggyrabbit won by checkmate"]

1. d4 {[%clk 0:04:54.4]} 1... e6 {[%clk 0:04:58.6]} 2. Nf3 {[%clk 0:04:53.6]}
2... f5 {[%clk 0:04:57.1]} 3. Nc3 {[%clk 0:04:52.7]} 3... Nf6 {[%clk 0:04:55.4]}
4. Bf4 {[%clk 0:04:51.8]} 4... Bb4 {[%clk 0:04:53.2]} 5. a3 {[%clk 0:04:50.1]}
5... Bxc3+ {[%clk 0:04:40.5]} 6. bxc3 {[%clk 0:04:49.5]} 6... O-O {[%clk
0:04:38.7]} 7. c4 {[%clk 0:04:45.3]} 7... b6 {[%clk 0:04:32.8]} 8. d5 {[%clk
0:04:44]} 8... Bb7 {[%clk 0:04:26.3]} 9. dxe6 {[%clk 0:04:42.3]} 9... dxe6
{[%clk 0:04:25]} 10. Qxd8 {[%clk 0:04:40]} 10... Rxd8 {[%clk 0:04:23.7]} 11. e3
{[%clk 0:04:38.5]} 11... Bxf3 {[%clk 0:04:12.7]} 12. gxf3 {[%clk 0:04:36.4]}
12... Nc6 {[%clk 0:04:09.3]} 13. Bg3 {[%clk 0:04:33.8]} 13... Rd7 {[%clk
0:04:04.5]} 14. Bh3 {[%clk 0:04:32.7]} 14... Rad8 {[%clk 0:04:02.9]} 15. O-O
{[%clk 0:04:31.6]} 15... g5 {[%clk 0:03:52.1]} 16. f4 {[%clk 0:04:30.7]} 16...
g4 {[%clk 0:03:44.4]} 17. Bg2 {[%clk 0:04:28.5]} 17... Ne7 {[%clk 0:03:37.6]}
18. f3 {[%clk 0:04:21.7]} 18... Rd2 {[%clk 0:03:23.5]} 19. fxg4 {[%clk 0:04:17]}
19... Nxg4 {[%clk 0:03:22.4]} 20. Bf3 {[%clk 0:04:07.5]} 20... Nxe3 {[%clk
0:03:16.7]} 21. Rf2 {[%clk 0:04:04.2]} 21... Rxc2 {[%clk 0:03:09]} 22. Rxc2
{[%clk 0:04:01.3]} 22... Nxc2 {[%clk 0:03:07.7]} 23. Ra2 {[%clk 0:03:51.6]}
23... Nd4 {[%clk 0:02:42.2]} 24. Bd1 {[%clk 0:03:42.9]} 24... Nec6 {[%clk
0:02:37.6]} 25. Ba4 {[%clk 0:03:38.5]} 25... Na5 {[%clk 0:02:27.5]} 26. Rd2
{[%clk 0:03:29.6]} 26... Nf3+ {[%clk 0:02:22.3]} 27. Kf2 {[%clk 0:03:24.6]}
27... Nxd2 {[%clk 0:02:20.4]} 28. Ke2 {[%clk 0:03:22.5]} 28... Ne4 {[%clk
0:02:18.6]} 29. Ke3 {[%clk 0:03:20.6]} 29... Nxc4+ {[%clk 0:02:17.1]} 30. Kf3
{[%clk 0:03:06.8]} 30... Nxg3 {[%clk 0:01:58.1]} 31. Kxg3 {[%clk 0:03:05.5]}
31... Rd3+ {[%clk 0:01:55.1]} 32. Kh4 {[%clk 0:03:04.7]} 32... Rxa3 {[%clk
0:01:48.6]} 33. Bb5 {[%clk 0:03:01.4]} 33... Nd6 {[%clk 0:01:44.2]} 34. Bd7
{[%clk 0:02:59.1]} 34... Kf7 {[%clk 0:01:42.1]} 35. Bc6 {[%clk 0:02:54.8]} 35...
Rc3 {[%clk 0:01:39.3]} 36. Bg2 {[%clk 0:02:50.4]} 36... a5 {[%clk 0:01:36.8]}
37. Bf1 {[%clk 0:02:48.6]} 37... a4 {[%clk 0:01:35.3]} 38. Kg5 {[%clk
0:02:37.9]} 38... a3 {[%clk 0:01:32]} 39. Kh6 {[%clk 0:02:37.5]} 39... a2 {[%clk
0:01:30.5]} 40. Kxh7 {[%clk 0:02:36.7]} 40... a1=Q {[%clk 0:01:28]} 41. Bh3
{[%clk 0:02:35.7]} 41... Rxh3# {[%clk 0:01:26.4]} 0-1

[Event "Live Chess"]
[Site "Chess.com"]
[Date "2023.05.21"]
[Round "-"]
[White "mliszewski"]
[Black "jumush"]
[Result "1-0"]
[WhiteElo "1816"]
[BlackElo "1714"]
[TimeControl "300"]
[EndTime "6:40:59 PDT"]
[Termination "mliszewski won by resignation"]

1. d4 {[%clk 0:04:59.4]} 1... d5 {[%clk 0:04:54.7]} 2. Bf4 {[%clk 0:04:58.6]}
2... Nf6 {[%clk 0:04:52.7]} 3. e3 {[%clk 0:04:56]} 3... c5 {[%clk 0:04:48.8]} 4.
dxc5 {[%clk 0:04:53.9]} 4... Nc6 {[%clk 0:04:46.9]} 5. Bb5 {[%clk 0:04:42]} 5...
Qa5+ {[%clk 0:04:42.8]} 6. Nc3 {[%clk 0:04:40.7]} 6... Ne4 {[%clk 0:04:39.1]} 7.
Ne2 {[%clk 0:04:39.8]} 7... Bd7 {[%clk 0:04:33.3]} 8. a3 {[%clk 0:04:35]} 8...
a6 {[%clk 0:04:27.2]} 9. Bxc6 {[%clk 0:04:33.5]} 9... Bxc6 {[%clk 0:04:25.1]}
10. b4 {[%clk 0:04:31.8]} 10... Qd8 {[%clk 0:04:18.1]} 11. Nxe4 {[%clk
0:04:29.3]} 11... dxe4 {[%clk 0:04:14.5]} 12. Qxd8+ {[%clk 0:04:29.2]} 12...
Rxd8 {[%clk 0:04:12.5]} 13. O-O {[%clk 0:04:29.1]} 13... f6 {[%clk 0:04:10.9]}
14. Bc7 {[%clk 0:04:25.4]} 14... Rd7 {[%clk 0:04:08.6]} 15. Bb6 {[%clk
0:04:24.7]} 15... e5 {[%clk 0:04:07]} 16. Rad1 {[%clk 0:04:24]} 16... Be7 {[%clk
0:04:05.5]} 17. Rxd7 {[%clk 0:04:22]} 17... Kxd7 {[%clk 0:04:04.1]} 18. Rd1+
{[%clk 0:04:20.6]} 18... Kc8 {[%clk 0:04:02.5]} 19. Ng3 {[%clk 0:04:15]} 19...
g6 {[%clk 0:03:58.7]} 20. Kf1 {[%clk 0:04:13.1]} 20... h5 {[%clk 0:03:56.7]} 21.
Ke2 {[%clk 0:04:11.6]} 21... h4 {[%clk 0:03:55.1]} 22. Nf1 {[%clk 0:04:11]}
22... Bd8 {[%clk 0:03:52.8]} 23. Bxd8 {[%clk 0:04:08.3]} 23... Rxd8 {[%clk
0:03:47.5]} 24. Rxd8+ {[%clk 0:04:07.4]} 24... Kxd8 {[%clk 0:03:46.3]} 25. f3
{[%clk 0:04:05.7]} 25... Bb5+ {[%clk 0:03:44.8]} 26. Kf2 {[%clk 0:04:04.3]}
26... Bxf1 {[%clk 0:03:43]} 27. Kxf1 {[%clk 0:04:03.5]} 27... exf3 {[%clk
0:03:36.5]} 28. gxf3 {[%clk 0:04:03.4]} 28... f5 {[%clk 0:03:31.3]} 29. c4
{[%clk 0:04:03]} 29... Kd7 {[%clk 0:03:28.8]} 30. b5 {[%clk 0:04:01.4]} 30...
axb5 {[%clk 0:03:22.6]} 31. cxb5 {[%clk 0:04:00.8]} 31... Ke6 {[%clk 0:03:20.8]}
32. e4 {[%clk 0:03:59.7]} 32... f4 {[%clk 0:03:16.6]} 33. a4 {[%clk 0:03:57.8]}
33... g5 {[%clk 0:03:15.1]} 34. h3 {[%clk 0:03:55.6]} 34... Kd7 {[%clk
0:03:08.7]} 35. Ke2 {[%clk 0:03:52.9]} 35... Kc7 {[%clk 0:03:07.2]} 36. a5
{[%clk 0:03:52.2]} 36... Kd7 {[%clk 0:02:58.9]} 37. a6 {[%clk 0:03:21.7]} 37...
bxa6 {[%clk 0:02:55.6]} 38. b6 {[%clk 0:03:20.1]} 38... Kc6 {[%clk 0:02:53.1]}
39. Kd2 {[%clk 0:03:15.6]} 1-0

[Event "Live Chess"]
[Site "Chess.com"]
[Date "2023.05.21"]
[Round "-"]
[White "JoRoSaR"]
[Black "Ian-Morley"]
[Result "0-1"]
[WhiteElo "1669"]
[BlackElo "1072"]
[TimeControl "300"]
[EndTime "6:41:00 PDT"]
[Termination "Ian-Morley won by checkmate"]

1. e4 {[%clk 0:04:59.5]} 1... d5 {[%clk 0:04:59]} 2. exd5 {[%clk 0:04:58.3]}
2... Qxd5 {[%clk 0:04:58.5]} 3. Nc3 {[%clk 0:04:57.5]} 3... Qe5+ {[%clk
0:04:56.1]} 4. Be2 {[%clk 0:04:55.7]} 4... Nf6 {[%clk 0:04:53.7]} 5. Nf3 {[%clk
0:04:54.7]} 5... Qd6 {[%clk 0:04:46.8]} 6. O-O {[%clk 0:04:50.4]} 6... Nd5
{[%clk 0:04:45.4]} 7. Ne4 {[%clk 0:04:47.4]} 7... Qd8 {[%clk 0:04:43]} 8. c4
{[%clk 0:04:35.5]} 8... Nf4 {[%clk 0:04:40.6]} 9. d4 {[%clk 0:04:34.5]} 9...
Nxe2+ {[%clk 0:04:39.4]} 10. Qxe2 {[%clk 0:04:32.7]} 10... Bg4 {[%clk
0:04:38.3]} 11. Rd1 {[%clk 0:04:30.1]} 11... e6 {[%clk 0:04:35.6]} 12. Bf4
{[%clk 0:04:27.9]} 12... Bd6 {[%clk 0:04:33.7]} 13. Nxd6+ {[%clk 0:04:26.4]}
13... cxd6 {[%clk 0:04:32.9]} 14. h3 {[%clk 0:04:24.8]} 14... Bxf3 {[%clk
0:04:31.6]} 15. Qxf3 {[%clk 0:04:24.3]} 15... d5 {[%clk 0:04:30.9]} 16. cxd5
{[%clk 0:04:22.3]} 16... Qxd5 {[%clk 0:04:30.1]} 17. Qg3 {[%clk 0:04:19.9]}
17... g6 {[%clk 0:04:28.5]} 18. Be5 {[%clk 0:04:17.7]} 18... O-O {[%clk
0:04:22.4]} 19. Bf6 {[%clk 0:04:15.6]} 19... Qf5 {[%clk 0:04:20.2]} 20. Be5
{[%clk 0:04:06.7]} 20... Nd7 {[%clk 0:04:18.3]} 21. Bd6 {[%clk 0:04:05.4]} 21...
Rfe8 {[%clk 0:04:12.8]} 22. Rac1 {[%clk 0:04:04.4]} 22... Rac8 {[%clk
0:04:11.3]} 23. Qb3 {[%clk 0:03:58.5]} 23... Rxc1 {[%clk 0:04:08.7]} 24. Rxc1
{[%clk 0:03:58.4]} 24... b6 {[%clk 0:04:02.5]} 25. Qa4 {[%clk 0:03:56.7]} 25...
e5 {[%clk 0:03:50.8]} 26. dxe5 {[%clk 0:03:52.4]} 26... Nxe5 {[%clk 0:03:49.7]}
27. Qxa7 {[%clk 0:03:47.2]} 27... Nc4 {[%clk 0:03:33.5]} 28. Rxc4 {[%clk
0:03:21]} 28... Re1+ {[%clk 0:03:18.1]} 29. Kh2 {[%clk 0:03:19.5]} 29... Qxf2
{[%clk 0:03:17.2]} 30. Bg3 {[%clk 0:03:17.9]} 30... Qg1# {[%clk 0:03:16.1]} 0-1

[Event "Live Chess"]
[Site "Chess.com"]
[Date "2023.05.21"]
[Round "-"]
[White "AMCWAML"]
[Black "WelshTiger"]
[Result "0-1"]
[WhiteElo "2262"]
[BlackElo "2326"]
[TimeControl "300"]
[EndTime "6:41:21 PDT"]
[Termination "WelshTiger won by resignation"]

1. e4 {[%clk 0:04:58.3]} 1... c5 {[%clk 0:04:59.1]} 2. Nf3 {[%clk 0:04:57.7]}
2... d6 {[%clk 0:04:58.6]} 3. d4 {[%clk 0:04:57.6]} 3... cxd4 {[%clk 0:04:58.1]}
4. Nxd4 {[%clk 0:04:57.5]} 4... Nf6 {[%clk 0:04:57.6]} 5. Nc3 {[%clk 0:04:57]}
5... Nc6 {[%clk 0:04:57.4]} 6. Bg5 {[%clk 0:04:54.9]} 6... Bd7 {[%clk
0:04:56.7]} 7. Qd2 {[%clk 0:04:51.6]} 7... Rc8 {[%clk 0:04:54.9]} 8. O-O-O
{[%clk 0:04:50.3]} 8... Nxd4 {[%clk 0:04:52]} 9. Qxd4 {[%clk 0:04:49.2]} 9...
Qa5 {[%clk 0:04:51.7]} 10. Bd2 {[%clk 0:04:47.3]} 10... a6 {[%clk 0:04:50.3]}
11. f3 {[%clk 0:04:37.5]} 11... Qc5 {[%clk 0:04:47.5]} 12. Be3 {[%clk
0:04:33.6]} 12... Qxd4 {[%clk 0:04:44.5]} 13. Rxd4 {[%clk 0:04:32]} 13... b5
{[%clk 0:04:42.5]} 14. g4 {[%clk 0:04:29.4]} 14... Bc6 {[%clk 0:04:36.6]} 15. h4
{[%clk 0:04:24.5]} 15... e6 {[%clk 0:04:34.2]} 16. h5 {[%clk 0:04:23.5]} 16...
h6 {[%clk 0:04:32.9]} 17. Be2 {[%clk 0:04:15.8]} 17... d5 {[%clk 0:04:27.7]} 18.
exd5 {[%clk 0:04:05.4]} 18... Nxd5 {[%clk 0:04:26.8]} 19. Nxd5 {[%clk
0:04:01.4]} 19... Bxd5 {[%clk 0:04:26.2]} 20. Re1 {[%clk 0:03:59.2]} 20... Bc5
{[%clk 0:04:22]} 21. Rd3 {[%clk 0:03:57.3]} 21... Bc4 {[%clk 0:04:21.2]} 22.
Bxc5 {[%clk 0:03:24.7]} 22... Bxd3 {[%clk 0:03:36.3]} 23. Bxd3 {[%clk
0:03:22.8]} 23... Rxc5 {[%clk 0:03:35.2]} 24. b4 {[%clk 0:03:17.2]} 24... Rc7
{[%clk 0:03:29.4]} 25. a4 {[%clk 0:03:15.9]} 25... Ke7 {[%clk 0:03:15]} 26. axb5
{[%clk 0:03:08.9]} 26... axb5 {[%clk 0:03:14.3]} 27. Re5 {[%clk 0:03:07]} 27...
Rb8 {[%clk 0:03:07.3]} 28. Kb2 {[%clk 0:03:01]} 28... Rcb7 {[%clk 0:03:05.2]}
29. Kb3 {[%clk 0:02:57]} 29... Kd6 {[%clk 0:03:04.6]} 30. f4 {[%clk 0:02:49]}
30... f6 {[%clk 0:03:01.8]} 31. Rc5 {[%clk 0:02:41.2]} 31... Rc7 {[%clk
0:02:46.6]} 32. Rxb5 {[%clk 0:02:37.8]} 32... Rxb5 {[%clk 0:02:45.6]} 33. Bxb5
{[%clk 0:02:37.7]} 33... e5 {[%clk 0:02:45.1]} 34. fxe5+ {[%clk 0:02:33.4]}
34... fxe5 {[%clk 0:02:43.8]} 35. Bd3 {[%clk 0:02:32.7]} 35... Kd5 {[%clk
0:02:41.1]} 36. c4+ {[%clk 0:02:15.6]} 36... Kd4 {[%clk 0:02:39.9]} 37. Bf1
{[%clk 0:02:11.7]} 37... Rf7 {[%clk 0:02:37.6]} 38. Bg2 {[%clk 0:02:08.4]} 38...
e4 {[%clk 0:02:35.9]} 39. b5 {[%clk 0:01:56.5]} 39... e3 {[%clk 0:02:33.9]} 40.
b6 {[%clk 0:01:55.8]} 40... e2 {[%clk 0:02:32.9]} 41. b7 {[%clk 0:01:53.5]}
41... Rxb7+ {[%clk 0:02:31.4]} 0-1

[Event "Live Chess"]
[Site "Chess.com"]
[Date "2023.05.21"]
[Round "-"]
[White "ShanthamGrarks"]
[Black "LiamBellwood"]
[Result "1-0"]
[WhiteElo "1981"]
[BlackElo "1899"]
[TimeControl "300"]
[EndTime "6:41:41 PDT"]
[Termination "ShanthamGrarks won on time"]

1. d4 {[%clk 0:04:57.3]} 1... e6 {[%clk 0:04:59.9]} 2. Nc3 {[%clk 0:04:55.4]}
2... Bb4 {[%clk 0:04:57.9]} 3. e4 {[%clk 0:04:54.6]} 3... d5 {[%clk 0:04:53.4]}
4. e5 {[%clk 0:04:50.3]} 4... Ne7 {[%clk 0:04:52.5]} 5. Bd3 {[%clk 0:04:47.5]}
5... c5 {[%clk 0:04:47.3]} 6. Bd2 {[%clk 0:04:37.7]} 6... cxd4 {[%clk
0:04:38.2]} 7. Nce2 {[%clk 0:04:36.1]} 7... Bxd2+ {[%clk 0:04:38.1]} 8. Qxd2
{[%clk 0:04:35.1]} 8... Nbc6 {[%clk 0:04:37.4]} 9. f4 {[%clk 0:04:32.1]} 9...
Qb6 {[%clk 0:04:32.4]} 10. Nf3 {[%clk 0:04:27.4]} 10... Bd7 {[%clk 0:04:29.8]}
11. O-O {[%clk 0:04:26.1]} 11... h5 {[%clk 0:04:25.9]} 12. Kh1 {[%clk
0:04:23.4]} 12... h4 {[%clk 0:04:22.5]} 13. h3 {[%clk 0:04:19.2]} 13... g6
{[%clk 0:04:15.9]} 14. Ng5 {[%clk 0:04:01.2]} 14... Nb4 {[%clk 0:04:01.7]} 15.
a3 {[%clk 0:03:39.7]} 15... Nxd3 {[%clk 0:04:00.1]} 16. cxd3 {[%clk 0:03:36.5]}
16... Nf5 {[%clk 0:03:49.7]} 17. Kh2 {[%clk 0:03:31.9]} 17... Kf8 {[%clk
0:03:26.2]} 18. Rfc1 {[%clk 0:03:26.8]} 18... Bc6 {[%clk 0:03:09.9]} 19. b4
{[%clk 0:03:24]} 19... a6 {[%clk 0:03:08.1]} 20. a4 {[%clk 0:03:17.3]} 20... Kg7
{[%clk 0:03:07.1]} 21. a5 {[%clk 0:03:14.5]} 21... Qd8 {[%clk 0:03:00.1]} 22.
Nf3 {[%clk 0:03:05.9]} 22... Rc8 {[%clk 0:02:36.8]} 23. Nexd4 {[%clk 0:03:02.6]}
23... Ng3 {[%clk 0:02:31]} 24. Ng5 {[%clk 0:02:54.5]} 24... Qd7 {[%clk
0:02:15.2]} 25. Rc3 {[%clk 0:02:40.8]} 25... Bb5 {[%clk 0:02:06.8]} 26. Rc5
{[%clk 0:02:17.6]} 26... Rxc5 {[%clk 0:02:01.9]} 27. bxc5 {[%clk 0:02:16.1]}
27... Rc8 {[%clk 0:02:01.3]} 28. Qc3 {[%clk 0:02:07.1]} 28... Qe7 {[%clk
0:01:40.8]} 29. Rc1 {[%clk 0:01:59.4]} 29... Bc6 {[%clk 0:01:29.7]} 30. Qd2
{[%clk 0:01:49]} 30... Ba4 {[%clk 0:01:16.8]} 31. Rb1 {[%clk 0:01:44.7]} 31...
Bb5 {[%clk 0:01:11.8]} 32. Nxb5 {[%clk 0:01:40.8]} 32... axb5 {[%clk 0:01:10.7]}
33. Qf2 {[%clk 0:01:39.8]} 33... Qxc5 {[%clk 0:01:07.1]} 34. d4 {[%clk
0:01:38.8]} 34... Qc4 {[%clk 0:01:02.2]} 35. Nf3 {[%clk 0:01:29.3]} 35... Nf5
{[%clk 0:00:54.3]} 36. Nxh4 {[%clk 0:01:21.6]} 36... b4 {[%clk 0:00:44]} 37.
Nxf5+ {[%clk 0:01:15.8]} 37... exf5 {[%clk 0:00:42.1]} 38. Qh4 {[%clk
0:01:14.7]} 38... Qxd4 {[%clk 0:00:31]} 39. Qf6+ {[%clk 0:01:11.7]} 39... Kh7
{[%clk 0:00:30.6]} 40. Qxf7+ {[%clk 0:01:10.4]} 40... Kh6 {[%clk 0:00:25.6]} 41.
Rg1 {[%clk 0:01:03.4]} 41... Qxf4+ {[%clk 0:00:23.3]} 42. Kh1 {[%clk 0:00:55.6]}
42... Rc1 {[%clk 0:00:22.3]} 43. e6 {[%clk 0:00:52.2]} 43... Rxg1+ {[%clk
0:00:11.3]} 44. Kxg1 {[%clk 0:00:51.3]} 44... b3 {[%clk 0:00:09.8]} 45. Qf8+
{[%clk 0:00:46.9]} 45... Kh5 {[%clk 0:00:04.2]} 46. Qh8+ {[%clk 0:00:42.3]}
46... Kg5 {[%clk 0:00:03.3]} 47. Qd8+ {[%clk 0:00:28.9]} 47... Kh5 {[%clk
0:00:01.9]} 48. Qxd5 {[%clk 0:00:18]} 48... Kg5 {[%clk 0:00:01.8]} 49. Qd8+
{[%clk 0:00:14.4]} 49... Kh5 {[%clk 0:00:00.8]} 50. Qh8+ {[%clk 0:00:13.6]}
50... Qh6 {[%clk 0:00:00.2]} 51. Qxh6+ {[%clk 0:00:11.6]} 1-0

[Event "Live Chess"]
[Site "Chess.com"]
[Date "2023.05.21"]
[Round "-"]
[White "PantherCal"]
[Black "mattihelenius2"]
[Result "1-0"]
[WhiteElo "1827"]
[BlackElo "491"]
[TimeControl "300"]
[EndTime "6:41:42 PDT"]
[Termination "PantherCal won by checkmate"]

1. e4 {[%clk 0:04:51.6]} 1... e6 {[%clk 0:04:56.1]} 2. d4 {[%clk 0:04:50.3]}
2... d5 {[%clk 0:04:55.4]} 3. exd5 {[%clk 0:04:50.2]} 3... exd5 {[%clk
0:04:53.7]} 4. Bd3 {[%clk 0:04:50.1]} 4... Nf6 {[%clk 0:04:49.9]} 5. Nf3 {[%clk
0:04:50]} 5... Bg4 {[%clk 0:04:46.9]} 6. O-O {[%clk 0:04:49.9]} 6... Nc6 {[%clk
0:04:45.3]} 7. Re1+ {[%clk 0:04:48.7]} 7... Be6 {[%clk 0:04:36.8]} 8. c3 {[%clk
0:04:46.4]} 8... Bd6 {[%clk 0:04:31.5]} 9. Bf5 {[%clk 0:04:40.9]} 9... g6 {[%clk
0:04:11.7]} 10. Bxe6 {[%clk 0:04:39.3]} 10... fxe6 {[%clk 0:04:10.7]} 11. Rxe6+
{[%clk 0:04:39.2]} 11... Ne7 {[%clk 0:04:01.7]} 12. Rxf6 {[%clk 0:04:37.5]}
12... Rf8 {[%clk 0:03:53.7]} 13. Rxf8+ {[%clk 0:04:33.7]} 13... Kxf8 {[%clk
0:03:52.3]} 14. Bh6+ {[%clk 0:04:33.6]} 14... Ke8 {[%clk 0:03:50.6]} 15. Ng5
{[%clk 0:04:32.4]} 15... Nf5 {[%clk 0:03:48.1]} 16. Qe2+ {[%clk 0:04:27.9]}
16... Be7 {[%clk 0:03:43.7]} 17. Ne6 {[%clk 0:04:22.9]} 17... Qd6 {[%clk
0:03:39.6]} 18. Ng7+ {[%clk 0:04:20]} 18... Nxg7 {[%clk 0:03:36.2]} 19. Bxg7
{[%clk 0:04:19.9]} 19... Kd7 {[%clk 0:03:30.9]} 20. Nd2 {[%clk 0:04:18.6]} 20...
Bg5 {[%clk 0:03:24.7]} 21. Be5 {[%clk 0:04:16.1]} 21... Qe6 {[%clk 0:03:21.2]}
22. Nf3 {[%clk 0:04:14.9]} 22... Rf8 {[%clk 0:03:16.9]} 23. Nxg5 {[%clk
0:04:12.7]} 23... Qe7 {[%clk 0:03:11.7]} 24. Qb5+ {[%clk 0:04:09.3]} 24... c6
{[%clk 0:03:08.9]} 25. Qxb7+ {[%clk 0:04:08.1]} 25... Ke8 {[%clk 0:03:06.8]} 26.
Qxc6+ {[%clk 0:04:03.4]} 26... Kd8 {[%clk 0:03:03.8]} 27. Ne6+ {[%clk
0:03:57.2]} 27... Qxe6 {[%clk 0:02:51.9]} 28. Qxe6 {[%clk 0:03:57.1]} 28... Rf5
{[%clk 0:02:46.6]} 29. Bd6 {[%clk 0:03:51.2]} 29... h5 {[%clk 0:02:31.7]} 30.
Qe7+ {[%clk 0:03:50]} 30... Kc8 {[%clk 0:02:28.5]} 31. Qc7# {[%clk 0:03:49.9]}
1-0

[Event "Live Chess"]
[Site "Chess.com"]
[Date "2023.05.21"]
[Round "-"]
[White "MarkLim1"]
[Black "ms_lilley"]
[Result "1-0"]
[WhiteElo "1704"]
[BlackElo "604"]
[TimeControl "300"]
[EndTime "6:41:43 PDT"]
[Termination "MarkLim1 won by checkmate"]

1. e4 {[%clk 0:04:57.2]} 1... e6 {[%clk 0:04:58.5]} 2. d3 {[%clk 0:04:55.9]}
2... d5 {[%clk 0:04:54.6]} 3. Nd2 {[%clk 0:04:54.9]} 3... Bb4 {[%clk 0:04:50.5]}
4. c3 {[%clk 0:04:53.8]} 4... Ba5 {[%clk 0:04:41.3]} 5. e5 {[%clk 0:04:52.5]}
5... Ne7 {[%clk 0:04:38]} 6. d4 {[%clk 0:04:50.5]} 6... Nf5 {[%clk 0:04:36.3]}
7. Bd3 {[%clk 0:04:49.4]} 7... O-O {[%clk 0:04:30]} 8. Ne2 {[%clk 0:04:43.4]}
8... Nc6 {[%clk 0:04:27.9]} 9. O-O {[%clk 0:04:41.3]} 9... Qg5 {[%clk 0:04:24]}
10. f4 {[%clk 0:04:39.9]} 10... Qg4 {[%clk 0:04:18.2]} 11. Nf3 {[%clk
0:04:36.3]} 11... Nh4 {[%clk 0:04:13.2]} 12. Nxh4 {[%clk 0:04:34.3]} 12... Qxh4
{[%clk 0:04:10.3]} 13. Ng3 {[%clk 0:04:32.5]} 13... g6 {[%clk 0:04:06.3]} 14.
Qf3 {[%clk 0:04:12.9]} 14... Qe7 {[%clk 0:04:00.7]} 15. Be3 {[%clk 0:04:07.7]}
15... Bxc3 {[%clk 0:03:56.7]} 16. bxc3 {[%clk 0:04:06.2]} 16... Na5 {[%clk
0:03:53.6]} 17. Nh1 {[%clk 0:04:02.1]} 17... a6 {[%clk 0:03:51.8]} 18. Nf2
{[%clk 0:04:01.2]} 18... b5 {[%clk 0:03:50.5]} 19. Ng4 {[%clk 0:04:00]} 19...
Qa3 {[%clk 0:03:45.2]} 20. Nf6+ {[%clk 0:03:58.8]} 20... Kg7 {[%clk 0:03:42.2]}
21. Qh3 {[%clk 0:03:56.3]} 21... h5 {[%clk 0:03:38]} 22. Rac1 {[%clk 0:03:34.2]}
22... Rh8 {[%clk 0:03:33.8]} 23. Qg3 {[%clk 0:03:24.7]} 23... Kf8 {[%clk
0:03:18.3]} 24. Qg5 {[%clk 0:03:00.2]} 24... Qxa2 {[%clk 0:03:11.1]} 25. Rf2
{[%clk 0:02:51.6]} 25... Qb3 {[%clk 0:02:58.3]} 26. Rb1 {[%clk 0:02:45.9]} 26...
Qxc3 {[%clk 0:02:28]} 27. Nxd5 {[%clk 0:02:39.8]} 27... Qxd3 {[%clk 0:02:25.2]}
28. Qe7+ {[%clk 0:02:29.3]} 28... Kg7 {[%clk 0:02:15.8]} 29. Qf6+ {[%clk
0:02:13.9]} 29... Kf8 {[%clk 0:02:11.5]} 30. Qxh8# {[%clk 0:02:05.2]} 1-0

[Event "Live Chess"]
[Site "Chess.com"]
[Date "2023.05.21"]
[Round "-"]
[White "LiamClery2020"]
[Black "Olisingapore"]
[Result "1-0"]
[WhiteElo "1970"]
[BlackElo "1785"]
[TimeControl "300"]
[EndTime "6:41:47 PDT"]
[Termination "LiamClery2020 won by resignation"]

1. e4 {[%clk 0:04:59.2]} 1... c5 {[%clk 0:04:58.4]} 2. Nf3 {[%clk 0:04:58.2]}
2... d6 {[%clk 0:04:58]} 3. Bb5+ {[%clk 0:04:56.7]} 3... Nd7 {[%clk 0:04:55.7]}
4. Bxd7+ {[%clk 0:04:54.7]} 4... Bxd7 {[%clk 0:04:54.7]} 5. O-O {[%clk
0:04:54.6]} 5... Nf6 {[%clk 0:04:53.8]} 6. Re1 {[%clk 0:04:46.7]} 6... g6 {[%clk
0:04:50.5]} 7. h3 {[%clk 0:04:43.1]} 7... Bg7 {[%clk 0:04:49.6]} 8. c3 {[%clk
0:04:41.9]} 8... O-O {[%clk 0:04:48.3]} 9. d4 {[%clk 0:04:41.8]} 9... cxd4
{[%clk 0:04:47]} 10. cxd4 {[%clk 0:04:41.7]} 10... Nxe4 {[%clk 0:04:45.9]} 11.
Rxe4 {[%clk 0:04:39.3]} 11... Qb6 {[%clk 0:04:43.4]} 12. Nc3 {[%clk 0:04:36.6]}
12... Bf5 {[%clk 0:04:41.8]} 13. Re1 {[%clk 0:04:35]} 13... Rfc8 {[%clk
0:04:40.7]} 14. Nd5 {[%clk 0:04:33.9]} 14... Qb5 {[%clk 0:04:16.6]} 15. Nxe7+
{[%clk 0:04:30.8]} 1-0